bitfinex/quotes_BTCUSD_20240915
["timestamp","ask_amount","ask_price","bid_price","bid_amount"]
[1726436182420,0.50807679,59711.0,59710.0,0.167476]
[1726436183755,0.50807679,59711.0,59709.0,0.002822]
[1726436183756,0.50807679,59711.0,59709.0,0.1683]
[1726436183984,0.67554979,59711.0,59710.0,0.003]
[1726436184210,0.50807679,59711.0,59710.0,0.003]
[1726436184884,0.50707679,59711.0,59709.0,0.1683]
[1726436185338,0.50807679,59711.0,59709.0,0.000822]
[1726436185754,0.50907679,59711.0,59709.0,0.000822]
[1726436185968,0.50807679,59711.0,59709.0,0.000822]
[1726436186192,0.50707679,59711.0,59709.0,0.171299]
[1726436186432,0.50807679,59711.0,59709.0,0.171299]
[1726436188686,0.00765919,59710.0,59709.0,0.171299]
[1726436188905,0.01307493,59710.0,59709.0,0.171299]
[1726436189161,0.51463293,59710.0,59709.0,0.171299]
[1726436189605,0.51463293,59710.0,59709.0,0.168299]
[1726436189822,0.51463293,59710.0,59709.0,0.172299]
[1726436190047,0.51563293,59710.0,59709.0,0.172299]
[1726436190717,0.51563293,59710.0,59709.0,0.004822]
[1726436191150,0.51563293,59710.0,59709.0,0.1723]
[1726436192022,0.86153293,59710.0,59709.0,0.004822]
[1726436192228,0.86153293,59710.0,59709.0,0.1723]
[1726436192877,0.86153293,59710.0,59709.0,0.004822]
[1726436193795,0.86153293,59710.0,59709.0,0.1723]
[1726436200232,0.86153293,59710.0,59709.0,0.004822]
[1726436201135,0.86153293,59710.0,59709.0,0.1723]
[1726436202354,0.86153293,59710.0,59709.0,0.004822]
[1726436203030,0.86153293,59710.0,59709.0,0.1723]
[1726436205593,1.36396093,59710.0,59709.0,0.004822]
[1726436212235,1.69891293,59710.0,59709.0,0.004822]
[1726436212660,1.69891293,59710.0,59709.0,0.00318274]
[1726436213104,0.837392,59709.0,59708.0,0.000822]
[1726436213325,1.33895,59709.0,59708.0,0.000822]
[1726436213738,1.35199755,59709.0,59708.0,0.000822]
[1726436214372,1.68695455,59709.0,59708.0,0.000822]
[1726436214599,1.76146789,59709.0,59708.0,0.000822]
[1726436214800,1.68695455,59709.0,59708.0,0.000822]
[1726436215015,1.76146789,59709.0,59708.0,0.000822]
[1726436215674,1.69295455,59709.0,59708.0,0.000822]
[1726436216115,1.76746789,59709.0,59708.0,0.000822]
[1726436216332,1.76146789,59709.0,59708.0,0.000822]
[1726436216768,0.3396,59708.0,59691.0,0.000823]
[1726436216987,0.3396,59708.0,59692.0,0.502573]
[1726436216988,0.167513,59697.0,59692.0,0.502573]
[1726436217196,0.501558,59696.0,59693.0,0.167522]
[1726436217409,0.50684482,59696.0,59693.0,0.167522]
[1726436217615,0.67436082,59696.0,59693.0,0.167522]
[1726436217819,0.50684482,59696.0,59694.0,0.167519]
[1726436218757,0.00769811,59695.0,59694.0,0.167519]
[1726436218973,0.50925611,59695.0,59694.0,0.167519]
[1726436219399,0.50925611,59695.0,59693.0,0.167523]
[1726436220264,0.51025611,59695.0,59693.0,0.167523]
[1726436220495,0.51025611,59695.0,59694.0,0.008]
[1726436221177,0.51025611,59695.0,59693.0,0.167523]
[1726436221399,0.167524,59693.0,59691.0,0.000823]
[1726436221645,0.501558,59692.0,59691.0,0.000823]
[1726436222113,1.004137,59692.0,59691.0,0.000823]
[1726436222340,1.01039853,59692.0,59691.0,0.000823]
[1726436222789,1.34645153,59692.0,59691.0,0.000823]
[1726436223254,1.34545153,59692.0,59691.0,0.000823]
[1726436223478,1.01839853,59692.0,59691.0,0.000823]
[1726436223716,1.01539853,59692.0,59691.0,0.000823]
[1726436223936,0.67834553,59692.0,59691.0,0.000823]
[1726436224155,0.68334553,59692.0,59691.0,0.000823]
[1726436224375,1.01839853,59692.0,59691.0,0.000823]
[1726436224857,1.35345153,59692.0,59691.0,0.000823]
[1726436225328,1.35045153,59692.0,59691.0,0.000823]
[1726436225554,1.35745153,59692.0,59691.0,0.000823]
[1726436225793,1.35245153,59692.0,59691.0,0.000823]
[1726436226021,1.02539853,59692.0,59691.0,0.001823]
[1726436226262,1.02539853,59692.0,59691.0,0.169352]
[1726436226263,0.52281953,59692.0,59691.0,0.169352]
[1726436226504,0.52281953,59692.0,59691.0,0.001823]
[1726436228595,0.52281953,59692.0,59691.0,0.169352]
[1726436229066,0.52281953,59692.0,59691.0,1.174526]
[1726436229324,0.37121953,59692.0,59691.0,1.609584]
[1726436229555,0.37012206,59692.0,59691.0,1.609584]
[1726436229763,0.02016406,59692.0,59691.0,1.609584]
[1726436229997,0.44778575,59716.0,59714.0,0.167463]
[1726436230227,0.44778575,59716.0,59691.0,0.60812121]
[1726436230228,0.167463,59715.0,59711.0,0.167471]
[1726436230462,0.167465,59714.0,59709.0,0.334957]
[1726436230702,0.00505976,59714.0,59711.0,0.167472]
[1726436230922,0.50242,59713.0,59711.0,0.167472]
[1726436231147,0.50748498,59713.0,59712.0,0.16747]
[1726436231418,0.50748498,59713.0,59712.0,0.502411]
[1726436231875,0.50748498,59713.0,59712.0,0.96484686]
[1726436232105,0.50748498,59713.0,59712.0,0.96684686]
[1726436232330,0.51848498,59713.0,59712.0,1.30278786]
[1726436233010,0.52584596,59713.0,59712.0,1.30278786]
[1726436233256,0.51484596,59713.0,59712.0,1.30278786]
[1726436233448,0.51684596,59713.0,59712.0,1.30278786]
[1726436234747,0.51484596,59713.0,59712.0,1.30278786]
[1726436234974,0.51484596,59713.0,59712.0,1.30378786]
[1726436236218,0.51648996,59713.0,59712.0,1.30578786]
[1726436243208,0.51648996,59713.0,59712.0,1.31657888]
[1726436244503,0.51648996,59713.0,59712.0,1.65151988]
[1726436244739,0.51148996,59713.0,59712.0,1.65151988]
[1726436245172,0.51148996,59713.0,59712.0,2.44066489]
[1726436245659,0.51148996,59713.0,59712.0,2.44296489]
[1726436245660,0.499064,59713.0,59712.0,2.44296489]
[1726436246104,0.499064,59713.0,59712.0,2.44196489]
[1726436246326,0.496764,59713.0,59712.0,2.44296489]
[1726436246798,0.496764,59713.0,59712.0,2.44196489]
[1726436247238,0.496764,59713.0,59712.0,2.44796489]
[1726436247784,0.496764,59713.0,59712.0,2.45796489]
[1726436247785,0.497764,59713.0,59712.0,2.45796489]
[1726436250192,0.497764,59713.0,59712.0,1.99552903]
[1726436250443,0.492764,59713.0,59712.0,2.12302389]
[1726436250760,0.50524536,59713.0,59712.0,2.12302389]
[1726436251021,0.492764,59713.0,59712.0,2.12302389]
[1726436251491,0.492764,59713.0,59712.0,2.45796489]
[1726436255251,0.25120368,59733.0,59716.0,2.10154386]
[1726436255479,0.25120368,59733.0,59716.0,2.46701988]
[1726436255730,0.25120368,59733.0,59716.0,2.46901988]
[1726436255956,0.25120368,59733.0,59716.0,2.46701988]
[1726436256655,0.25120368,59733.0,59716.0,2.47201988]
[1726436257177,0.25120368,59733.0,59716.0,2.47801988]
[1726436257825,0.25120368,59733.0,59716.0,2.47201988]
[1726436258038,0.002644,59717.0,59716.0,2.48601988]
[1726436258269,0.001644,59717.0,59716.0,2.47201988]
[1726436258736,0.001644,59717.0,59716.0,2.48101988]
[1726436259197,0.001644,59717.0,59716.0,2.49301988]
[1726436259651,0.001644,59717.0,59716.0,2.48101988]
[1726436259878,0.001644,59717.0,59716.0,2.49501988]
[1726436260783,0.001644,59717.0,59716.0,1.80837121]
[1726436261028,0.001644,59717.0,59716.0,1.93586607]
[1726436268047,0.1466,59723.0,59722.0,1.174094]
[1726436268267,0.1466,59723.0,59722.0,1.40158886]
[1726436269092,0.1466,59723.0,59722.0,1.40958886]
[1726436270859,0.1466,59723.0,59722.0,1.41958886]
[1726436271569,0.1466,59723.0,59722.0,1.43013466]
[1726436272925,0.1466,59723.0,59722.0,1.42813466]
[1726436273159,0.148244,59723.0,59722.0,1.42813466]
[1726436273379,0.148244,59723.0,59722.0,1.43013466]
[1726436273619,0.148244,59723.0,59722.0,1.42813466]
[1726436273859,0.148244,59723.0,59722.0,1.41958886]
[1726436274125,0.001644,59723.0,59722.0,1.92571307]
[1726436274354,0.001644,59723.0,59722.0,2.27506289]
[1726436275501,0.001644,59723.0,59722.0,2.28571031]
[1726436275944,0.001644,59723.0,59722.0,2.28611713]
[1726436278245,0.001644,59723.0,59722.0,2.01162411]
[1726436279822,0.001644,59723.0,59722.0,1.93636049]
[1726436280941,0.001644,59723.0,59722.0,1.93436049]
[1726436281607,0.001644,59723.0,59722.0,1.98454083]
[1726436283461,0.001644,59723.0,59722.0,1.93436049]
[1726436286391,0.001644,59723.0,59722.0,1.98454083]
[1726436286872,0.001644,59723.0,59722.0,2.18077664]
[1726436287094,0.001644,59723.0,59722.0,2.47989992]
[1726436287323,0.001644,59723.0,59722.0,2.42409607]
[1726436287760,0.001644,59723.0,59722.0,2.15006162]
[1726436287984,0.001644,59723.0,59722.0,2.4798447]
[1726436288214,0.001644,59723.0,59722.0,2.42396896]
[1726436288433,0.001644,59723.0,59722.0,2.52432785]
[1726436288653,0.001644,59723.0,59722.0,2.35308764]
[1726436288877,0.001644,59723.0,59722.0,2.19551166]
[1726436289114,0.001644,59723.0,59722.0,2.29800837]
[1726436289604,0.001644,59723.0,59722.0,2.22268371]
[1726436290525,0.001644,59723.0,59722.0,2.32311659]
[1726436290756,0.340144,59723.0,59722.0,1.22961792]
[1726436290981,0.340144,59723.0,59722.0,0.90545611]
[1726436291205,0.340144,59723.0,59722.0,0.85521]
[1726436291423,0.340144,59723.0,59722.0,0.01]
[1726436291646,0.1428,59721.0,59718.0,0.167453]
[1726436291867,0.1957,59720.0,59718.0,0.167452]
[1726436292144,0.20831797,59720.0,59717.0,0.168278]
[1726436293064,0.167456,59717.0,59716.0,0.000822]
[1726436293308,0.167456,59717.0,59712.0,0.000822]
[1726436293309,0.167462,59715.0,59712.0,0.000822]
[1726436293538,0.1862,59717.0,59712.0,0.000822]
[1726436293756,0.00520249,59714.0,59713.0,0.167465]
[1726436293969,0.1862,59717.0,59713.0,0.167465]
[1726436294184,0.01259599,59714.0,59713.0,0.167465]
[1726436294395,0.1862,59717.0,59713.0,0.167465]
[1726436294640,0.1862,59717.0,59712.0,0.000822]
[1726436294641,0.1748585,59714.0,59712.0,0.000822]
[1726436294857,0.1862,59717.0,59712.0,0.000822]
[1726436295078,0.00738786,59713.0,59712.0,0.000822]
[1726436295303,0.16746,59716.0,59712.0,0.000822]
[1726436295519,0.00738786,59713.0,59712.0,0.000822]
[1726436295803,0.167467,59714.0,59712.0,0.000822]
[1726436296039,0.334925,59715.0,59712.0,0.000822]
[1726436296274,0.00738786,59713.0,59712.0,0.000822]
[1726436296489,0.353665,59714.0,59712.0,0.000822]
[1726436296720,0.00738786,59713.0,59712.0,0.000822]
[1726436297375,0.00738786,59713.0,59712.0,0.001822]
[1726436297590,0.01438786,59713.0,59712.0,0.002822]
[1726436298029,0.50978986,59713.0,59712.0,0.001822]
[1726436298243,0.52278986,59713.0,59712.0,0.002822]
[1726436298481,0.54906557,59713.0,59712.0,0.001822]
[1726436298908,0.55606557,59713.0,59712.0,0.002822]
[1726436299133,0.68876557,59713.0,59712.0,0.001822]
[1726436299552,0.69476557,59713.0,59712.0,0.002822]
[1726436299797,0.66848986,59713.0,59712.0,0.001822]
[1726436300014,0.67348986,59713.0,59712.0,0.002822]
[1726436300676,0.66848986,59713.0,59712.0,0.001822]
[1726436300991,1.00342486,59713.0,59712.0,0.001822]
[1726436300992,0.167483,59708.0,59702.0,0.1]
[1726436301189,0.167482,59708.0,59704.0,0.167492]
[1726436301409,0.17483806,59707.0,59703.0,0.167493]
[1726436301865,0.00735406,59707.0,59703.0,0.169493]
[1726436302125,0.17483906,59707.0,59703.0,0.167493]
[1726436302391,0.00734842,59706.0,59705.0,0.167489]
[1726436302588,0.001,59708.0,59705.0,0.167489]
[1726436302821,0.00735406,59707.0,59704.0,0.167492]
[1726436303413,0.00735406,59707.0,59705.0,0.167488]
[1726436304035,0.001,59708.0,59705.0,0.167488]
[1726436304231,0.00734842,59706.0,59705.0,0.167488]
[1726436304461,0.167487,59706.0,59705.0,0.001]
[1726436304703,0.00734842,59706.0,59705.0,0.001]
[1726436304902,0.00734842,59706.0,59703.0,0.167494]
[1726436305575,0.00734842,59706.0,59705.0,0.001]
[1726436306084,0.00734842,59706.0,59702.0,0.334994]
[1726436306085,0.001644,59723.0,59702.0,0.12749486]
[1726436306297,0.001644,59723.0,59715.0,0.96480486]
[1726436306514,0.001644,59723.0,59715.0,1.30172886]
[1726436306942,0.001644,59723.0,59715.0,1.41301276]
[1726436307156,0.001644,59723.0,59715.0,1.51301276]
[1726436307396,0.001644,59723.0,59715.0,1.70524857]
[1726436307609,0.001644,59723.0,59715.0,1.70724857]
[1726436307820,0.001644,59723.0,59715.0,1.71524857]
[1726436308023,0.001644,59723.0,59715.0,1.78186179]
[1726436308237,0.001644,59723.0,59715.0,2.12578579]
[1726436308458,0.002644,59716.0,59715.0,2.12578579]
[1726436308772,0.001644,59723.0,59722.0,1.197094]
[1726436308980,0.001644,59723.0,59722.0,1.99732189]
[1726436310229,0.001644,59723.0,59722.0,2.00432189]
[1726436311422,0.002644,59723.0,59722.0,2.01232189]
[1726436311633,0.002644,59723.0,59722.0,2.1835621]
[1726436313695,0.002644,59723.0,59722.0,2.19408857]
[1726436315246,0.002644,59723.0,59722.0,2.19208857]
[1726436315472,0.002644,59723.0,59722.0,2.1815621]
[1726436315689,0.002644,59723.0,59722.0,2.1835621]
[1726436319234,0.188244,59723.0,59722.0,1.287094]
[1726436319466,0.188244,59723.0,59722.0,0.517326]
[1726436319683,0.19921724,59723.0,59722.0,0.517326]
[1726436319897,0.188244,59723.0,59722.0,0.517326]
[1726436320114,0.19921724,59723.0,59722.0,0.517326]
[1726436320382,0.19921724,59723.0,59722.0,0.510326]
[1726436320617,0.19821724,59723.0,59722.0,0.502326]
[1726436320849,0.20521724,59723.0,59722.0,0.503326]
[1726436321074,0.20521724,59723.0,59722.0,0.502326]
[1726436321312,0.20521724,59723.0,59722.0,0.83721]
[1726436321530,0.21821724,59723.0,59722.0,0.83921]
[1726436321984,0.21221724,59723.0,59722.0,0.503326]
[1726436322430,0.21821724,59723.0,59722.0,0.504326]
[1726436322665,0.21821724,59723.0,59722.0,0.169442]
[1726436323157,0.24448822,59723.0,59722.0,0.504326]
[1726436323355,0.24448822,59723.0,59722.0,0.169442]
[1726436323996,0.24448822,59723.0,59722.0,0.504326]
[1726436324486,0.24448822,59723.0,59722.0,0.169442]
[1726436324929,0.24448822,59723.0,59722.0,0.002]
[1726436325138,0.41192722,59723.0,59722.0,0.002]
[1726436326350,0.24448822,59723.0,59722.0,0.002]
[1726436328184,0.41192722,59723.0,59722.0,0.002]
[1726436329954,0.24448822,59723.0,59722.0,0.83921]
[1726436330421,0.24448822,59723.0,59722.0,0.84121]
[1726436332510,0.24448822,59723.0,59722.0,0.83921]
[1726436334593,0.05888822,59723.0,59722.0,1.91271806]
[1726436334828,0.02703516,59723.0,59722.0,1.91471806]
[1726436335052,0.021644,59723.0,59722.0,1.91471806]
[1726436335491,0.001644,59723.0,59722.0,1.91271806]
[1726436335727,0.001644,59723.0,59722.0,1.92326132]
[1726436335960,0.001644,59723.0,59722.0,2.25814532]
[1726436336394,0.007644,59723.0,59722.0,2.25914532]
[1726436336826,0.013644,59723.0,59722.0,1.92526132]
[1726436337287,0.007644,59723.0,59722.0,1.92426132]
[1726436337502,0.008644,59723.0,59722.0,2.27314532]
[1726436337716,0.001644,59723.0,59722.0,2.25814532]
[1726436337932,0.001644,59723.0,59722.0,2.27014532]
[1726436338194,0.002644,59723.0,59722.0,2.28214532]
[1726436338435,0.001644,59723.0,59722.0,2.25614532]
[1726436338652,0.002644,59723.0,59722.0,2.28414532]
[1726436338869,0.002644,59723.0,59722.0,2.28614532]
[1726436339330,0.002644,59723.0,59722.0,2.27014532]
[1726436339541,0.002644,59723.0,59722.0,2.28414532]
[1726436339976,0.001644,59723.0,59722.0,2.27014532]
[1726436340244,0.002644,59723.0,59722.0,2.28414532]
[1726436340466,0.002644,59723.0,59722.0,2.28214532]
[1726436341657,0.002644,59723.0,59722.0,2.28414532]
[1726436341868,0.002644,59723.0,59722.0,2.28214532]
[1726436342090,0.002644,59723.0,59722.0,2.28414532]
[1726436342318,0.002644,59723.0,59722.0,1.91726132]
[1726436343022,0.002644,59723.0,59722.0,1.91926132]
[1726436347953,0.002644,59723.0,59722.0,1.83975707]
[1726436348178,0.000821,59735.0,59734.0,1.82578408]
[1726436348408,0.000821,59735.0,59734.0,1.99701989]
[1726436348850,0.0168415,59735.0,59734.0,1.99701989]
[1726436349077,0.000821,59735.0,59734.0,1.99701989]
[1726436349319,0.000821,59735.0,59734.0,2.00301989]
[1726436349558,0.000821,59735.0,59734.0,2.15833859]
[1726436349978,0.000821,59735.0,59734.0,2.16033859]
[1726436350613,0.000821,59735.0,59734.0,2.17097279]
[1726436351088,0.000821,59735.0,59734.0,2.17597279]
[1726436353763,0.000821,59735.0,59734.0,1.98173698]
[1726436357132,0.000821,59735.0,59734.0,1.82441828]
[1726436361091,0.000821,59735.0,59734.0,1.99565409]
[1726436361368,0.000821,59735.0,59734.0,2.04865409]
[1726436361820,0.000821,59735.0,59734.0,2.04665409]
[1726436362259,0.000821,59735.0,59734.0,2.04865409]
[1726436362929,0.000821,59735.0,59734.0,2.05065409]
[1726436363352,0.000821,59735.0,59734.0,2.04865409]
[1726436363594,0.000821,59735.0,59734.0,2.2198943]
[1726436364037,0.000821,59735.0,59734.0,2.2178943]
[1726436365795,0.000821,59735.0,59734.0,2.5527113]
[1726436366226,0.000821,59735.0,59734.0,2.5547113]
[1726436366488,0.000821,59735.0,59734.0,2.5527113]
[1726436366711,0.000821,59735.0,59734.0,2.2178943]
[1726436366982,0.000821,59735.0,59734.0,2.2778943]
[1726436367203,0.000821,59735.0,59734.0,2.63387549]
[1726436367894,0.000821,59735.0,59734.0,2.63587549]
[1726436370645,0.000821,59735.0,59734.0,2.6167113]
[1726436370906,0.000821,59735.0,59734.0,2.63584904]
[1726436371125,0.000821,59735.0,59734.0,2.63384904]
[1726436371766,0.000821,59735.0,59734.0,2.43974096]
[1726436371989,0.000821,59735.0,59734.0,2.6147113]
[1726436372659,0.000821,59735.0,59734.0,2.63393404]
[1726436372914,0.000821,59735.0,59734.0,2.29911704]
[1726436373139,0.000821,59735.0,59734.0,1.72454601]
[1726436373390,0.000821,59735.0,59734.0,1.71391181]
[1726436373630,0.000821,59735.0,59734.0,1.182859]
[1726436373874,0.000821,59735.0,59734.0,1.184859]
[1726436374571,0.000821,59735.0,59734.0,1.284859]
[1726436375762,0.000821,59735.0,59734.0,1.43181335]
[1726436376992,0.001644,59751.0,59734.0,1.43181335]
[1726436376993,0.001644,59751.0,59750.0,0.167364]
[1726436377226,0.001644,59751.0,59750.0,1.32516389]
[1726436377460,0.001644,59751.0,59750.0,1.79560828]
[1726436377933,0.001644,59751.0,59750.0,1.46088028]
[1726436378667,0.002644,59751.0,59750.0,1.47288028]
[1726436378902,0.002644,59751.0,59750.0,1.47688028]
[1726436379149,0.002644,59751.0,59750.0,1.47288028]
[1726436379865,0.002644,59751.0,59750.0,1.48388028]
[1726436380107,0.002644,59751.0,59750.0,1.5408517]
[1726436380565,0.002644,59751.0,59750.0,1.48588028]
[1726436383150,0.002644,59751.0,59750.0,1.49626967]
[1726436386206,0.002644,59751.0,59750.0,1.49826967]
[1726436386446,0.002644,59751.0,59750.0,1.49626967]
[1726436387121,0.002644,59751.0,59750.0,1.86099767]
[1726436387578,0.1853,59760.0,59754.0,1.18787008]
[1726436387824,0.1853,59760.0,59754.0,1.8630511]
[1726436389255,0.1853,59760.0,59754.0,1.8700511]
[1726436389981,0.1853,59760.0,59754.0,1.8760511]
[1726436390632,0.0005909,59758.0,59757.0,1.273408]
[1726436390839,0.0005909,59758.0,59757.0,1.63888402]
[1726436391935,0.0005909,59758.0,59757.0,1.64288402]
[1726436392615,0.0005909,59758.0,59757.0,1.64588402]
[1726436393705,0.0005909,59758.0,59757.0,1.65667349]
[1726436394870,0.0005909,59758.0,59757.0,0.109]
[1726436395100,0.0005909,59758.0,59748.0,0.43494582]
[1726436395101,0.1406909,59758.0,59748.0,0.002]
[1726436395318,0.1406909,59758.0,59742.0,0.2665]
[1726436395319,0.1883,59756.0,59742.0,0.2665]
[1726436395574,0.1406909,59758.0,59742.0,0.2665]
[1726436395575,0.334751,59746.0,59742.0,0.31256081]
[1726436395784,0.334751,59746.0,59742.0,0.2665]
[1726436396020,0.50215,59743.0,59742.0,0.2665]
[1726436396253,0.50215,59743.0,59735.0,0.002]
[1726436396254,0.167392,59740.0,59735.0,0.002]
[1726436396490,0.167392,59740.0,59731.0,0.33865081]
[1726436396728,0.17490155,59739.0,59735.0,0.002]
[1726436396939,0.00750555,59739.0,59735.0,0.002]
[1726436397146,0.00750555,59739.0,59732.0,0.002]
[1726436397385,0.167404,59736.0,59732.0,0.002]
[1726436397617,0.167404,59736.0,59735.0,0.002]
[1726436397853,0.00734642,59735.0,59722.0,0.46060808]
[1726436398110,0.1773,59736.0,59723.0,0.16826]
[1726436398382,0.167423,59729.0,59723.0,0.000822]
[1726436398803,0.167419,59731.0,59723.0,0.000822]
[1726436399027,0.01421298,59728.0,59723.0,0.000822]
[1726436399254,0.00677286,59728.0,59723.0,0.000822]
[1726436399470,0.00677286,59728.0,59723.0,0.002822]
[1726436399980,0.00677286,59728.0,59723.0,0.001822]
[1726436400431,0.167436,59724.0,59723.0,0.001822]
[1726436400652,0.357636,59724.0,59723.0,0.001822]
[1726436400912,0.37167907,59724.0,59723.0,0.000822]
[1726436401120,0.70655207,59724.0,59723.0,0.000822]
[1726436401374,0.167442,59722.0,59717.0,0.19410808]
[1726436401600,0.53912207,59724.0,59717.0,0.19410808]
[1726436401601,0.167446,59721.0,59717.0,0.19410808]
[1726436401815,0.167446,59721.0,59716.0,0.000822]
[1726436401816,0.334885,59722.0,59716.0,0.000822]
[1726436402261,0.167454,59718.0,59716.0,0.000822]
[1726436402520,0.1947,59736.0,59735.0,0.434812]
[1726436402757,0.1947,59736.0,59735.0,0.29410808]
[1726436403496,0.1947,59736.0,59735.0,0.46151408]
[1726436405439,0.1967,59736.0,59735.0,0.46151408]
[1726436407892,0.1967,59736.0,59735.0,0.79632608]
[1726436409635,0.197522,59736.0,59735.0,0.57462949]
[1726436409845,0.197522,59736.0,59735.0,0.79632608]
[1726436410064,0.20181513,59736.0,59735.0,0.79632608]
[1726436411567,0.20181513,59736.0,59735.0,0.29410808]
[1726436411782,0.20181513,59736.0,59733.0,0.1]
[1726436412041,0.167413,59733.0,59730.0,0.1]
[1726436412255,0.20181513,59736.0,59723.0,0.001644]
[1726436412256,0.167427,59728.0,59723.0,0.001644]
[1726436412524,0.334834,59731.0,59723.0,0.001644]
[1726436412525,0.334834,59731.0,59723.0,0.17287981]
[1726436412742,0.20181513,59736.0,59723.0,0.001644]
[1726436412743,0.167432,59726.0,59723.0,0.001644]
[1726436412973,0.00429792,59727.0,59723.0,0.001644]
[1726436413230,0.167428,59727.0,59723.0,0.001644]
[1726436413447,0.167429,59727.0,59723.0,0.001644]
[1726436413633,0.00935941,59726.0,59723.0,0.001644]
[1726436413854,0.17679141,59726.0,59723.0,0.001644]
[1726436414068,0.167432,59726.0,59723.0,0.001644]
[1726436414301,0.17680708,59725.0,59723.0,0.001644]
[1726436414520,0.00937308,59725.0,59723.0,0.001644]
[1726436415241,0.00937308,59725.0,59723.0,0.002644]
[1726436415727,0.00937308,59725.0,59723.0,0.001644]
[1726436415728,0.837182,59724.0,59723.0,0.001644]
[1726436415935,1.026682,59724.0,59723.0,0.001644]
[1726436416833,1.03163669,59724.0,59723.0,0.001644]
[1726436417052,1.03163669,59724.0,59713.0,0.003356]
[1726436417053,0.334887,59722.0,59713.0,0.003356]
[1726436417274,0.19445469,59724.0,59713.0,0.003356]
[1726436417275,0.502369,59717.0,59713.0,0.003356]
[1726436417721,0.84209986,59717.0,59713.0,0.003356]
[1726436417948,0.84209986,59717.0,59716.0,1.39727081]
[1726436417949,0.00481786,59717.0,59716.0,1.39727081]
[1726436418165,0.00481786,59717.0,59716.0,1.55716143]
[1726436418379,0.25117214,59732.0,59722.0,0.03]
[1726436418628,0.25117214,59732.0,59731.0,0.167417]
[1726436418827,0.1895,59733.0,59732.0,0.502242]
[1726436419070,0.1895,59733.0,59732.0,0.83707]
[1726436419512,0.1867,59741.0,59735.0,0.502218]
[1726436422394,0.1867,59741.0,59735.0,0.83703]
[1726436423090,0.001822,59736.0,59735.0,0.83703]
[1726436426759,0.001822,59736.0,59735.0,1.171842]
[1726436434056,0.001822,59736.0,59735.0,1.28363865]
[1726436434316,0.001822,59736.0,59735.0,1.171842]
[1726436450635,0.001822,59736.0,59735.0,1.18241132]
[1726436450863,0.001822,59736.0,59735.0,1.171842]
[1726436453620,0.001822,59736.0,59735.0,0.83703]
[1726436454746,0.001822,59736.0,59735.0,0.502218]
[1726436455422,0.01306352,59736.0,59735.0,0.502218]
[1726436462652,0.01306352,59736.0,59735.0,0.167406]
[1726436466731,0.01306352,59736.0,59735.0,0.502218]
[1726436471172,0.01306352,59736.0,59735.0,0.167406]
[1726436471410,0.01306352,59736.0,59733.0,0.502227]
[1726436471651,0.01306352,59736.0,59732.0,0.05026565]
[1726436471652,0.1465,59735.0,59732.0,0.334827]
[1726436471873,0.1465,59735.0,59734.0,0.167408]
[1726436472960,0.1465,59735.0,59734.0,0.502225]
[1726436473814,0.15252869,59735.0,59734.0,0.502225]
[1726436474255,0.15252869,59735.0,59734.0,0.503225]
[1726436474703,0.15252869,59735.0,59734.0,0.168408]
[1726436475436,0.31993469,59735.0,59734.0,0.001]
[1726436475673,0.32513661,59735.0,59734.0,0.001]
[1726436480717,0.32678061,59735.0,59734.0,0.001]
[1726436485754,0.15937461,59735.0,59734.0,0.001]
[1726436487107,0.15656649,59735.0,59734.0,0.001]
[1726436488693,0.16869605,59735.0,59734.0,0.001]
[1726436489419,0.16869605,59735.0,59734.0,0.168408]
[1726436495052,0.16869605,59735.0,59734.0,0.503225]
[1726436496482,0.02219605,59735.0,59734.0,0.503225]
[1726436499857,0.02219605,59735.0,59734.0,0.168408]
[1726436506765,0.02219605,59735.0,59734.0,0.001]
[1726436506987,0.18960205,59735.0,59734.0,0.001]
[1726436508074,0.02219605,59735.0,59734.0,0.001]
[1726436508522,0.18960205,59735.0,59734.0,0.001]
[1726436514147,0.02219605,59735.0,59734.0,0.001]
[1726436524736,0.02219605,59735.0,59734.0,0.011]
[1726436525825,0.18960205,59735.0,59734.0,0.011]
[1726436529129,0.02219605,59735.0,59734.0,0.011]
[1726436533776,0.02219605,59735.0,59734.0,0.178408]
[1726436535501,0.001644,59735.0,59734.0,0.178408]
[1726436535935,0.02220692,59735.0,59734.0,0.178408]
[1726436536195,0.02220692,59735.0,59734.0,0.011]
[1726436536378,0.02220692,59735.0,59734.0,0.178408]
[1726436544070,0.02220692,59735.0,59734.0,0.513225]
[1726436544310,0.02220692,59735.0,59734.0,1.23317049]
[1726436544574,0.02220692,59735.0,59734.0,1.56589011]
[1726436544836,0.001644,59735.0,59734.0,1.56589011]
[1726436545018,0.001644,59735.0,59734.0,1.60308015]
[1726436545693,0.001644,59735.0,59734.0,1.71409838]
[1726436545908,0.001644,59735.0,59734.0,1.71309838]
[1726436546349,0.001644,59735.0,59734.0,1.71509838]
[1726436546582,0.001644,59735.0,59734.0,1.61556681]
[1726436547528,0.001644,59735.0,59734.0,1.69093354]
[1726436548585,0.001644,59735.0,59734.0,1.69011076]
[1726436549413,0.001644,59735.0,59734.0,1.40850051]
[1726436549634,0.001644,59735.0,59734.0,1.322659]
[1726436550264,0.001644,59735.0,59734.0,1.39801385]
[1726436550487,0.001644,59735.0,59734.0,1.322659]
[1726436550743,0.001644,59735.0,59734.0,1.49389921]
[1726436551176,0.001644,59735.0,59734.0,2.28576919]
[1726436551388,0.1792,59750.0,59749.0,0.502099]
[1726436551817,0.19637478,59750.0,59749.0,0.502099]
[1726436552035,0.1792,59750.0,59749.0,0.502099]
[1726436552245,0.19637443,59750.0,59749.0,0.502099]
[1726436554094,0.02017443,59750.0,59749.0,1.4400276]
[1726436554365,0.003,59750.0,59749.0,1.4400276]
[1726436554833,0.003,59750.0,59749.0,1.2989276]
[1726436555952,0.0014129,59758.0,59757.0,0.167344]
[1726436556419,0.01858697,59758.0,59757.0,0.167344]
[1726436556636,0.0014129,59758.0,59757.0,0.167344]
[1726436556855,0.01864668,59758.0,59757.0,0.167344]
[1726436557092,0.0014129,59758.0,59757.0,0.167344]
[1726436557531,0.01864668,59758.0,59757.0,0.167344]
[1726436557774,0.0014129,59758.0,59757.0,0.167344]